[Event "FIDE WYCC Girls U14 2023"]
[Site "Montesilvano"]
[Date "2023.11.14"]
[Round "2.34"]
[White "Stoll, Lucia"]
[Black "Antenreiter, Lena"]
[Result "1-0"]
[ECO "B99"]
[WhiteElo "1887"]
[BlackElo "1309"]
[Annotator "NA"]
[PlyCount "58"]
[EventDate "2023.11.13"]
[EventType "swiss"]
[EventCountry "ITA"]
[SourceTitle "playchess.com"]
[Source "ChessBase"]
[SourceQuality "1"]
[TimeControl "40/5400+30:1800+30"]

1. e4 {[%emt 0:00:01]} c5 {[%emt 0:00:05]} 2. Nf3 {[%emt 0:00:06]} d6 {[%emt 0:00:05]} 3. d4 {[%emt 0:00:11]} cxd4 {[%emt 0:00:07]} 4. Nxd4 {[%emt 0:00:03]} Nf6 {[%emt 0:00:09]} 5. Nc3 {[%emt 0:00:04]} a6 {[%emt 0:00:08]} 6. Bg5 {[%emt 0:00:34]} e6 {[%emt 0:00:09]} 7. f4 Be7 {[%emt 0:00:15]} 8. Qf3 {[%emt 0:01:34]} Qc7 9. O-O-O {[%emt 0:00:51]} Nbd7 {[%emt 0:00:45]} 10. g4 {[%emt 0:01:04]} h6 {[%emt 0:00:23]} 11. Bxf6 {[%emt 0:00:44]} Bxf6 {[%emt 0:00:48]} 12. h4 {[%emt 0:04:35]} Nb6 {[%emt 0:08:43]} 13. Be2 {[%emt 0:00:58]} Bd7 {[%emt 0:02:51]} 14. g5 {[%emt 0:06:03]} hxg5 {[%emt 0:02:56]} 15. hxg5 {[%emt 0:00:42]} Rxh1 {[%emt 0:00:35]} 16. Qxh1 {[%emt 0:00:40]} Be7 {[%emt 0:01:06]} 17. g6 {[%emt 0:09:27]} fxg6 {[%emt 0:09:55]} 18. Qh7 {[%emt 0:15:53]} Bf6 {[%emt 0:18:11]} 19. Qxg6+ {[%emt 0:02:13]} Ke7 {[%emt 0:01:41]} 20. Rd3 {[%emt 0:08:59]} Rh8 {[%emt 0:02:31]} 21. Qg2 {[%emt 0:05:57]} Nc4 {[%emt 0:12:14]} 22. Nf5+ {[%emt 0:09:23]} Kf7 {[%emt 0:04:30]} 23. Ne3 {[%emt 0:13:36]} Nxe3 {[%emt 0:03:10]} 24. Rxe3 {[%emt 0:00:01]} b5 {[%emt 0:01:30]} 25. f5 {[%emt 0:07:05]} exf5 {[%emt 0:03:23]} 26. exf5 {[%emt 0:01:33]} Bxf5 {[%emt 0:00:49]} 27. Qd5+ {[%emt 0:00:56]} Kg6 {[%emt 0:01:17]} 28. Bd3 {[%emt 0:04:42]} Bxd3 {[%emt 0:01:18]} 29. Rg3+ {[%emt 0:00:38]} Kh6 {[%emt 0:04:09]} 1-0

[Event "FIDE WYCC Girls U14 2023"]
[Site "Montesilvano"]
[Date "2023.11.14"]
[Round "2.35"]
[White "Nordahl, Christine"]
[Black "Yu, Avery"]
[Result "1-0"]
[ECO "B99"]
[WhiteElo "1316"]
[BlackElo "1861"]
[Annotator "NA"]
[PlyCount "55"]
[EventDate "2023.11.13"]
[EventType "swiss"]
[EventCountry "ITA"]
[SourceTitle "playchess.com"]
[Source "ChessBase"]
[SourceQuality "1"]
[TimeControl "40/5400+30:1800+30"]

1. e4 {[%emt 0:00:03]} c5 {[%emt 0:00:05]} 2. Nf3 {[%emt 0:00:13]} d6 {[%emt 0:00:09]} 3. d4 {[%emt 0:00:39]} cxd4 {[%emt 0:00:04]} 4. Nxd4 {[%emt 0:00:22]} Nf6 {[%emt 0:00:04]} 5. Nc3 a6 {[%emt 0:00:04]} 6. Bg5 {[%emt 0:01:49]} e6 7. f4 {[%emt 0:01:33]} Be7 {[%emt 0:01:02]} 8. Qf3 {[%emt 0:02:07]} Nbd7 9. O-O-O {[%emt 0:02:26]} Qc7 {[%emt 0:00:39]} 10. g4 {[%emt 0:01:26]} b5 {[%emt 0:00:45]} 11. Bxf6 {[%emt 0:03:31]} Bxf6 {[%emt 0:00:35]} 12. Bxb5 {[%emt 0:01:25]} axb5 {[%emt 0:27:01]} 13. Ndxb5 {[%emt 0:00:17]} Qb8 {[%emt 0:05:38]} 14. Nxd6+ {[%emt 0:11:57]} Kf8 {[%emt 0:05:20]} 15. e5 {[%emt 0:03:55]} Bxe5 {[%emt 0:02:51]} 16. fxe5 {[%emt 0:03:11]} Nxe5 {[%emt 0:00:14]} 17. Qf4 {[%emt 0:00:10]} f6 {[%emt 0:02:40]} 18. g5 {[%emt 0:02:24]} Ke7 {[%emt 0:01:22]} 19. gxf6+ {[%emt 0:01:27]} gxf6 {[%emt 0:01:54]} 20. Qh6 {[%emt 0:03:16]} Nf7 {[%emt 0:02:27]} 21. Qg7 {[%emt 0:00:34]} Rf8 {[%emt 0:04:40]} 22. Rhf1 {[%emt 0:01:38]} f5 {[%emt 0:01:08]} 23. Nxf5+ {[%emt 0:01:57]} exf5 {[%emt 0:03:32]} 24. Rfe1+ {[%emt 0:00:16]} Be6 {[%emt 0:00:49]} 25. Nd5+ {[%emt 0:00:24]} Kd6 {[%emt 0:02:46]} 26. Nb6+ {[%emt 0:00:29]} Ke7 {[%emt 0:00:26]} 27. Rd7+ {[%emt 0:00:23]} Ke8 {[%emt 0:00:08]} 28. Rxe6# 1-0

[Event "FIDE WYCC Girls U14 2023"]
[Site "Montesilvano"]
[Date "2023.11.15"]
[Round "3.1"]
[White "Sneha Halder"]
[Black "Mou, Iris"]
[Result "0-1"]
[ECO "A03"]
[WhiteElo "1807"]
[BlackElo "2086"]
[Annotator "NA"]
[PlyCount "112"]
[EventDate "2023.11.13"]
[EventType "swiss"]
[EventCountry "ITA"]
[SourceTitle "playchess.com"]
[Source "ChessBase"]
[SourceQuality "1"]
[TimeControl "40/5400+30:1800+30"]

1. f4 {[%emt 0:01:30]} d5 {[%emt 0:00:12]} 2. Nf3 {[%emt 0:00:05]} Nf6 {[%emt 0:00:13]} 3. g3 {[%emt 0:00:07]} b5 {[%emt 0:01:37]} 4. Bg2 {[%emt 0:00:07]} Bb7 {[%emt 0:00:24]} 5. b3 {[%emt 0:00:23]} e6 {[%emt 0:00:25]} 6. Bb2 {[%emt 0:00:05]} Be7 {[%emt 0:00:27]} 7. O-O {[%emt 0:01:03]} O-O {[%emt 0:00:54]} 8. Ne5 {[%emt 0:00:14]} Nbd7 {[%emt 0:00:12]} 9. e3 {[%emt 0:00:22]} c5 {[%emt 0:01:08]} 10. d3 {[%emt 0:01:07]} Qb6 {[%emt 0:04:49]} 11. Nd2 {[%emt 0:01:59]} a5 {[%emt 0:04:00]} 12. a4 {[%emt 0:00:46]} c4 {[%emt 0:19:00]} 13. Bd4 {[%emt 0:05:36]} Bc5 {[%emt 0:03:40]} 14. Bxc5 {[%emt 0:00:31]} Qxc5 {[%emt 0:01:41]} 15. d4 {[%emt 0:00:57]} Qc7 {[%emt 0:04:38]} 16. axb5 {[%emt 0:01:52]} c3 {[%emt 0:06:37]} 17. Nb1 {[%emt 0:04:07]} Nb6 {[%emt 0:04:53]} 18. g4 {[%emt 0:04:08]} Ne4 {[%emt 0:03:41]} 19. Rf3 {[%emt 0:03:51]} a4 {[%emt 0:05:59]} 20. bxa4 {[%emt 0:04:03]} Nxa4 {[%emt 0:03:41]} 21. Qe1 {[%emt 0:02:10]} Nb2 {[%emt 0:02:20]} 22. Rxa8 {[%emt 0:10:44]} Rxa8 {[%emt 0:00:15]} 23. Rh3 {[%emt 0:00:16]} f6 {[%emt 0:07:56]} 24. b6 {[%emt 0:20:44]} Qe7 {[%emt 0:02:24]} 25. Qh4 {[%emt 0:14:32]} g5 {[%emt 0:00:30]} 26. Qh6 {[%emt 0:08:46]} fxe5 {[%emt 0:02:03]} 27. Bxe4 {[%emt 0:01:14]} dxe4 {[%emt 0:00:07]} 28. Rh5 {[%emt 0:03:26]} exf4 {[%emt 0:04:43]} 29. Rxg5+ {[%emt 0:00:33]} Kh8 {[%emt 0:00:06]} 30. Rc5 {[%emt 0:00:39]} Qf8 {[%emt 0:06:03]} 31. Qxe6 {[%emt 0:02:35]} fxe3 {[%emt 0:01:15]} 32. Qe5+ {[%emt 0:03:28]} Qg7 {[%emt 0:00:22]} 33. Qxg7+ {[%emt 0:00:29]} Kxg7 {[%emt 0:00:02]} 34. Nxc3 {[%emt 0:00:15]} Nd1 {[%emt 0:02:56]} 35. Ne2 {[%emt 0:01:23]} Rc8 {[%emt 0:04:36]} 36. Rxc8 {[%emt 0:01:37]} Bxc8 {[%emt 0:00:30]} 37. c4 {[%emt 0:00:30]} Kf6 {[%emt 0:00:30]} 38. h4 {[%emt 0:00:30]} Nf2 {[%emt 0:00:30]} 39. g5+ {[%emt 0:00:30]} Kf5 {[%emt 0:00:30]} 40. Kg2 {[%emt 0:00:30]} Kg4 {[%emt 0:00:30]} 41. Nc3 {[%emt 0:30:30]} Nd3 {[%emt 0:30:30]} 42. Nxe4 {[%emt 0:00:30]} Nf4+ {[%emt 0:00:00]} 43. Kf1 {[%emt 0:00:00]} Ba6 {[%emt 0:00:00]} 44. Ke1 {[%emt 0:00:00]} Bxc4 {[%emt 0:00:00]} 45. Nc3 {[%emt 0:00:00]} Ba6 {[%emt 0:00:00]} 46. d5 {[%emt 0:00:00]} Kf5 {[%emt 0:00:00]} 47. d6 {[%emt 0:00:00]} Ke6 {[%emt 0:00:00]} 48. h5 Kxd6 {[%emt 0:00:00]} 49. g6 {[%emt 0:00:00]} h6 {[%emt 0:00:36]} 50. g7 {[%emt 0:00:00]} Bc4 {[%emt 0:00:10]} 51. Nb5+ {[%emt 0:00:00]} Kc6 {[%emt 0:01:24]} 52. Nd4+ {[%emt 0:00:00]} Kxb6 {[%emt 0:00:22]} 53. Nc2 {[%emt 0:00:00]} Ng2+ {[%emt 0:01:19]} 54. Kd1 {[%emt 0:00:00]} e2+ {[%emt 0:00:08]} 55. Kd2 {[%emt 0:00:00]} e1=Q+ {[%emt 0:00:04]} 56. Nxe1 {[%emt 0:00:00]} Nxe1 {[%emt 0:00:06]} 0-1

[Event "FIDE WYCC Girls U14 2023"]
[Site "Montesilvano"]
[Date "2023.11.15"]
[Round "3.2"]
[White "Skramstad, Oda Kofoed"]
[Black "Mgeladze, Kesaria"]
[Result "1/2-1/2"]
[ECO "A57"]
[WhiteElo "1801"]
[BlackElo "2065"]
[Annotator "NA"]
[PlyCount "50"]
[EventDate "2023.11.13"]
[EventType "swiss"]
[EventCountry "ITA"]
[SourceTitle "playchess.com"]
[Source "ChessBase"]
[SourceQuality "1"]
[TimeControl "40/5400+30:1800+30"]

1. d4 {[%emt 0:00:48]} Nf6 {[%emt 0:02:38]} 2. c4 {[%emt 0:01:04]} c5 {[%emt 0:00:30]} 3. d5 {[%emt 0:01:18]} b5 {[%emt 0:00:31]} 4. cxb5 {[%emt 0:02:14]} a6 {[%emt 0:00:06]} 5. b6 {[%emt 0:01:13]} e6 {[%emt 0:01:27]} 6. Nc3 {[%emt 0:00:49]} Nxd5 {[%emt 0:00:19]} 7. Nxd5 {[%emt 0:01:03]} exd5 {[%emt 0:00:04]} 8. Qxd5 {[%emt 0:00:10]} Nc6 {[%emt 0:00:05]} 9. Nf3 {[%emt 0:02:00]} Rb8 {[%emt 0:01:06]} 10. Ne5 {[%emt 0:04:29]} Qf6 {[%emt 0:01:00]} 11. Nxc6 {[%emt 0:05:40]} dxc6 {[%emt 0:00:06]} 12. Qg5 {[%emt 0:00:33]} Be7 {[%emt 0:06:12]} 13. Qxf6 {[%emt 0:08:02]} Bxf6 {[%emt 0:00:06]} 14. e4 {[%emt 0:00:29]} Rxb6 15. Bc4 {[%emt 0:06:54]} Rb4 {[%emt 0:04:04]} 16. Bd3 {[%emt 0:05:12]} c4 {[%emt 0:05:20]} 17. Bd2 {[%emt 0:07:13]} Rxb2 {[%emt 0:28:56]} 18. Bxc4 {[%emt 0:00:43]} O-O {[%emt 0:00:04]} 19. Rc1 {[%emt 0:02:58]} Re8 {[%emt 0:00:46]} 20. Be3 {[%emt 0:07:46]} Rxe4 {[%emt 0:14:17]} 21. O-O {[%emt 0:06:19]} Re8 {[%emt 0:03:43]} 22. Rfd1 {[%emt 0:03:51]} Be6 {[%emt 0:08:42]} 23. Bxa6 {[%emt 0:02:57]} Bd5 {[%emt 0:00:56]} 24. Bc4 {[%emt 0:02:50]} Bxc4 {[%emt 0:01:47]} 25. Rxc4 {[%emt 0:00:08]} Rxa2 1/2-1/2

[Event "FIDE WYCC Girls U14 2023"]
[Site "Montesilvano"]
[Date "2023.11.15"]
[Round "3.3"]
[White "Lyutsinger, Iren"]
[Black "Montano Vicente, Guadalupe"]
[Result "1-0"]
[ECO "B94"]
[WhiteElo "2020"]
[BlackElo "1794"]
[Annotator "NA"]
[PlyCount "151"]
[EventDate "2023.11.13"]
[EventType "swiss"]
[EventCountry "ITA"]
[SourceTitle "playchess.com"]
[Source "ChessBase"]
[SourceQuality "1"]
[TimeControl "40/5400+30:1800+30"]

1. e4 {[%emt 0:00:01]} c5 {[%emt 0:00:04]} 2. Nf3 {[%emt 0:00:11]} d6 {[%emt 0:00:15]} 3. d4 {[%emt 0:00:20]} cxd4 {[%emt 0:00:09]} 4. Nxd4 {[%emt 0:00:05]} Nf6 {[%emt 0:00:05]} 5. Nc3 {[%emt 0:00:13]} a6 {[%emt 0:00:03]} 6. Bg5 {[%emt 0:00:42]} Nbd7 {[%emt 0:00:05]} 7. Bc4 {[%emt 0:00:21]} Qc7 {[%emt 0:06:26]} 8. Qe2 {[%emt 0:01:34]} b5 {[%emt 0:06:58]} 9. Bb3 {[%emt 0:10:46]} Bb7 {[%emt 0:05:22]} 10. O-O-O {[%emt 0:07:14]} e6 {[%emt 0:23:02]} 11. Rhe1 {[%emt 0:08:43]} Be7 {[%emt 0:02:39]} 12. Bxe6 {[%emt 0:14:25]} fxe6 {[%emt 0:01:35]} 13. Nxe6 {[%emt 0:00:14]} Qc4 {[%emt 0:01:44]} 14. Qxc4 {[%emt 0:03:17]} bxc4 {[%emt 0:00:02]} 15. Nc7+ {[%emt 0:01:26]} Kf7 {[%emt 0:00:05]} 16. Nxa8 {[%emt 0:00:13]} Rxa8 {[%emt 0:00:14]} 17. f4 {[%emt 0:01:48]} Nc5 {[%emt 0:10:16]} 18. e5 {[%emt 0:12:17]} dxe5 {[%emt 0:02:03]} 19. fxe5 {[%emt 0:00:08]} Nfe4 {[%emt 0:04:51]} 20. e6+ {[%emt 0:11:52]} Ke8 {[%emt 0:23:25]} 21. Bxe7 {[%emt 0:03:27]} Kxe7 {[%emt 0:00:01]} 22. Nd5+ {[%emt 0:00:25]} Bxd5 {[%emt 0:00:59]} 23. Rxd5 {[%emt 0:00:01]} Rc8 {[%emt 0:00:33]} 24. Kd1 {[%emt 0:06:53]} Nf6 {[%emt 0:02:31]} 25. Rde5 {[%emt 0:02:04]} Rc6 {[%emt 0:00:14]} 26. Kd2 {[%emt 0:04:36]} Nxe6 {[%emt 0:01:40]} 27. Kc3 {[%emt 0:01:03]} Kf7 {[%emt 0:01:14]} 28. h3 {[%emt 0:00:54]} h6 {[%emt 0:01:30]} 29. a4 {[%emt 0:01:04]} Nf4 {[%emt 0:01:33]} 30. Rd1 {[%emt 0:02:13]} Ne6 {[%emt 0:00:56]} 31. a5 {[%emt 0:00:59]} Kg6 {[%emt 0:03:35]} 32. Kb4 {[%emt 0:01:47]} Kf7 {[%emt 0:00:32]} 33. g4 {[%emt 0:01:15]} Kg6 {[%emt 0:01:12]} 34. Rd2 {[%emt 0:02:06]} Kf7 {[%emt 0:00:15]} 35. Ka4 {[%emt 0:01:09]} Ke7 {[%emt 0:00:31]} 36. b4 {[%emt 0:00:24]} cxb3 {[%emt 0:00:09]} 37. cxb3 {[%emt 0:00:04]} Nd7 {[%emt 0:00:18]} 38. Red5 {[%emt 0:01:17]} Rc7 {[%emt 0:00:50]} 39. b4 {[%emt 0:00:14]} Nf6 {[%emt 0:00:37]} 40. Re5 {[%emt 0:00:00]} Nd7 {[%emt 0:00:00]} 41. Re3 {[%emt 0:01:35]} Nf6 {[%emt 0:08:29]} 42. Rdd3 {[%emt 0:08:15]} Rc1 {[%emt 0:05:55]} 43. Ka3 {[%emt 0:03:09]} Rb1 {[%emt 0:05:10]} 44. Rd2 {[%emt 0:02:28]} Rc1 {[%emt 0:00:27]} 45. Kb2 {[%emt 0:00:28]} Rc4 {[%emt 0:01:11]} 46. Kb3 {[%emt 0:00:34]} Rc6 {[%emt 0:00:50]} 47. Rc2 {[%emt 0:02:18]} Rxc2 {[%emt 0:01:57]} 48. Kxc2 {[%emt 0:00:03]} Nd5 {[%emt 0:00:05]} 49. Re4 {[%emt 0:00:11]} Kd6 {[%emt 0:00:45]} 50. Kb3 {[%emt 0:00:15]} Ng5 {[%emt 0:02:14]} 51. Re8 {[%emt 0:00:42]} Ne6 {[%emt 0:01:05]} 52. Rb8 {[%emt 0:02:01]} Ndc7 {[%emt 0:02:11]} 53. Kc4 {[%emt 0:00:42]} Kc6 {[%emt 0:00:34]} 54. Rb6+ {[%emt 0:01:38]} Kd7 {[%emt 0:00:13]} 55. h4 {[%emt 0:00:45]} Ke7 {[%emt 0:02:22]} 56. Kd3 {[%emt 0:03:05]} Kd8 {[%emt 0:03:49]} 57. Ke4 {[%emt 0:00:47]} Ke8 {[%emt 0:00:22]} 58. Ke5 {[%emt 0:00:59]} Ke7 {[%emt 0:00:10]} 59. Kf5 {[%emt 0:03:38]} Kf7 {[%emt 0:02:18]} 60. Rb7 {[%emt 0:01:41]} Kf8 {[%emt 0:00:37]} 61. Ra7 {[%emt 0:02:42]} Ke7 {[%emt 0:00:23]} 62. Kg6 {[%emt 0:00:57]} Kd6 {[%emt 0:00:16]} 63. Rb7 {[%emt 0:01:29]} Ke5 {[%emt 0:00:16]} 64. Rb6 {[%emt 0:00:40]} Kf4 {[%emt 0:00:52]} 65. Kf7 {[%emt 0:01:07]} Kxg4 {[%emt 0:00:36]} 66. Rxe6 {[%emt 0:00:46]} Nxe6 {[%emt 0:00:02]} 67. Kxe6 {[%emt 0:00:01]} Kxh4 {[%emt 0:00:07]} 68. b5 {[%emt 0:00:04]} axb5 {[%emt 0:00:05]} 69. a6 {[%emt 0:00:01]} g5 {[%emt 0:00:10]} 70. a7 {[%emt 0:00:03]} g4 {[%emt 0:00:20]} 71. a8=Q {[%emt 0:00:03]} h5 {[%emt 0:00:25]} 72. Kf5 {[%emt 0:00:23]} Kg3 {[%emt 0:00:29]} 73. Qa3+ {[%emt 0:00:11]} Kf2 {[%emt 0:01:26]} 74. Kf4 {[%emt 0:00:04]} Ke2 {[%emt 0:00:45]} 75. Qb2+ {[%emt 0:00:22]} Kf1 {[%emt 0:00:05]} 76. Kg3 {[%emt 0:00:27]} 1-0

[Event "FIDE WYCC Girls U14 2023"]
[Site "Montesilvano"]
[Date "2023.11.15"]
[Round "3.4"]
[White "Stankovic, Andrea"]
[Black "Arzur, Maia"]
[Result "1-0"]
[ECO "D52"]
[WhiteElo "1768"]
[BlackElo "1997"]
[Annotator "NA"]
[PlyCount "55"]
[EventDate "2023.11.13"]
[EventType "swiss"]
[EventCountry "ITA"]
[SourceTitle "playchess.com"]
[Source "ChessBase"]
[SourceQuality "1"]
[TimeControl "40/5400+30:1800+30"]

1. d4 {[%emt 0:00:01]} d5 {[%emt 0:00:12]} 2. Nf3 {[%emt 0:00:06]} Nf6 {[%emt 0:00:18]} 3. c4 {[%emt 0:00:09]} e6 {[%emt 0:00:28]} 4. Nc3 {[%emt 0:00:07]} c6 {[%emt 0:00:39]} 5. Bg5 {[%emt 0:00:08]} Nbd7 {[%emt 0:00:34]} 6. e3 {[%emt 0:00:11]} Qa5 {[%emt 0:00:44]} 7. Nd2 {[%emt 0:00:10]} Bb4 {[%emt 0:00:41]} 8. Qc2 {[%emt 0:00:09]} O-O {[%emt 0:01:22]} 9. Be2 {[%emt 0:00:10]} c5 {[%emt 0:01:16]} 10. O-O {[%emt 0:00:10]} cxd4 {[%emt 0:01:38]} 11. Nb3 {[%emt 0:00:08]} Qb6 {[%emt 0:01:44]} 12. Na4 {[%emt 0:00:12]} Qc7 {[%emt 0:02:24]} 13. Nxd4 {[%emt 0:00:11]} dxc4 {[%emt 0:06:20]} 14. Bxc4 {[%emt 0:00:07]} Bd6 {[%emt 0:05:23]} 15. Rac1 {[%emt 0:00:13]} Bxh2+ {[%emt 0:05:42]} 16. Kh1 {[%emt 0:00:05]} Bd6 {[%emt 0:00:04]} 17. Nb5 {[%emt 0:00:17]} Qa5 {[%emt 0:00:14]} 18. a3 {[%emt 0:00:12]} Nb6 {[%emt 0:25:25]} 19. Bxf6 {[%emt 0:31:25]} gxf6 {[%emt 0:02:05]} 20. Nxd6 {[%emt 0:00:17]} Qxa4 {[%emt 0:04:33]} 21. Qe4 {[%emt 0:02:42]} Nxc4 {[%emt 0:03:31]} 22. Qg4+ {[%emt 0:11:42]} Kh8 {[%emt 0:00:29]} 23. Rxc4 {[%emt 0:00:08]} Qa5 {[%emt 0:04:09]} 24. Rfc1 {[%emt 0:02:06]} Bd7 {[%emt 0:00:55]} 25. Rc7 {[%emt 0:01:14]} Be8 {[%emt 0:04:44]} 26. Rc8 {[%emt 0:03:21]} Qe5 {[%emt 0:10:27]} 27. Rxa8 {[%emt 0:01:29]} Qxd6 {[%emt 0:00:08]} 28. Qb4 {[%emt 0:00:40]} 1-0

[Event "FIDE WYCC Girls U14 2023"]
[Site "Montesilvano"]
[Date "2023.11.15"]
[Round "3.5"]
[White "Trunz, Tamila"]
[Black "Kirtadze, Anastasia"]
[Result "1/2-1/2"]
[ECO "B44"]
[WhiteElo "1732"]
[BlackElo "1921"]
[Annotator "NA"]
[PlyCount "139"]
[EventDate "2023.11.13"]
[EventType "swiss"]
[EventCountry "ITA"]
[SourceTitle "playchess.com"]
[Source "ChessBase"]
[SourceQuality "1"]
[TimeControl "40/5400+30:1800+30"]

1. e4 {[%emt 0:00:03]} c5 {[%emt 0:00:02]} 2. Nf3 {[%emt 0:00:07]} e6 {[%emt 0:00:03]} 3. d4 {[%emt 0:00:06]} cxd4 {[%emt 0:00:05]} 4. Nxd4 {[%emt 0:00:05]} Nc6 {[%emt 0:00:15]} 5. Nb5 {[%emt 0:00:47]} d6 {[%emt 0:03:20]} 6. N1c3 {[%emt 0:00:22]} a6 {[%emt 0:04:07]} 7. Nd4 {[%emt 0:09:59]} Qc7 {[%emt 0:02:22]} 8. Be2 {[%emt 0:01:35]} Nf6 {[%emt 0:00:39]} 9. Be3 {[%emt 0:03:01]} Be7 {[%emt 0:00:12]} 10. O-O {[%emt 0:00:40]} O-O {[%emt 0:00:05]} 11. f4 {[%emt 0:02:49]} Bd7 {[%emt 0:04:07]} 12. Qe1 {[%emt 0:03:45]} d5 {[%emt 0:08:37]} 13. e5 {[%emt 0:09:17]} Ne4 {[%emt 0:00:12]} 14. Nxe4 {[%emt 0:04:35]} dxe4 {[%emt 0:00:35]} 15. c3 {[%emt 0:00:40]} f5 {[%emt 0:07:19]} 16. Rc1 {[%emt 0:02:58]} Nxd4 {[%emt 0:09:02]} 17. cxd4 {[%emt 0:00:21]} Bc6 {[%emt 0:00:04]} 18. Bc4 {[%emt 0:00:34]} Qd7 {[%emt 0:00:05]} 19. Rf2 {[%emt 0:11:14]} Kh8 {[%emt 0:07:11]} 20. Rfc2 {[%emt 0:03:28]} g5 {[%emt 0:01:19]} 21. Qd2 {[%emt 0:05:12]} gxf4 {[%emt 0:06:51]} 22. Bxf4 {[%emt 0:00:09]} Rad8 {[%emt 0:02:21]} 23. Be3 {[%emt 0:02:49]} Rg8 {[%emt 0:01:26]} 24. Bxa6 {[%emt 0:01:54]} Rg7 {[%emt 0:24:23]} 25. Bc4 {[%emt 0:14:25]} Rdg8 {[%emt 0:00:40]} 26. g3 {[%emt 0:04:13]} Bg5 {[%emt 0:00:28]} 27. Rf1 {[%emt 0:01:29]} Bxe3+ {[%emt 0:02:27]} 28. Qxe3 {[%emt 0:00:06]} Rg4 {[%emt 0:00:09]} 29. Rd2 {[%emt 0:01:01]} R8g6 {[%emt 0:03:23]} 30. Qa3 {[%emt 0:02:53]} Qe8 {[%emt 0:01:28]} 31. Qe3 {[%emt 0:01:17]} Qg8 {[%emt 0:00:36]} 32. Rg2 {[%emt 0:01:08]} Qg7 {[%emt 0:02:36]} 33. Be2 {[%emt 0:02:36]} Rh4 {[%emt 0:00:57]} 34. Rf4 {[%emt 0:02:41]} Rh3 {[%emt 0:00:22]} 35. Bf1 {[%emt 0:01:33]} h5 {[%emt 0:02:22]} 36. b4 {[%emt 0:01:38]} h4 {[%emt 0:01:07]} 37. Rxh4+ {[%emt 0:00:50]} Rxh4 {[%emt 0:00:03]} 38. gxh4 {[%emt 0:00:11]} Rxg2+ {[%emt 0:03:28]} 39. Bxg2 {[%emt 0:00:37]} f4 {[%emt 0:00:02]} 40. Qxf4 {[%emt 0:00:00]} e3 {[%emt 0:00:00]} 41. Qg3 {[%emt 0:03:13]} e2 {[%emt 0:07:29]} 42. Kf2 {[%emt 0:06:43]} Bxg2 {[%emt 0:00:39]} 43. Kxe2 {[%emt 0:01:12]} Bc6 {[%emt 0:00:49]} 44. Ke3 {[%emt 0:11:47]} Kh7 {[%emt 0:03:45]} 45. a3 {[%emt 0:02:10]} Qg6 {[%emt 0:01:03]} 46. Qf4 {[%emt 0:04:05]} Qg1+ {[%emt 0:00:36]} 47. Kd2 {[%emt 0:02:26]} Qg6 {[%emt 0:02:39]} 48. Qg5 {[%emt 0:00:31]} Qf7 {[%emt 0:00:55]} 49. Qg3 {[%emt 0:00:24]} Qf5 {[%emt 0:00:24]} 50. Kc3 {[%emt 0:01:04]} b5 {[%emt 0:01:24]} 51. Kd2 {[%emt 0:00:45]} Qb1 {[%emt 0:03:52]} 52. Qc3 {[%emt 0:00:45]} Qe4 {[%emt 0:00:42]} 53. Qg3 {[%emt 0:03:00]} Qxd4+ {[%emt 0:00:11]} 54. Qd3+ {[%emt 0:00:06]} Qxd3+ {[%emt 0:04:12]} 55. Kxd3 {[%emt 0:00:07]} Kg6 {[%emt 0:00:20]} 56. Kd4 {[%emt 0:00:24]} Be8 {[%emt 0:02:37]} 57. Kc5 {[%emt 0:00:26]} Kf5 {[%emt 0:00:12]} 58. Kd6 {[%emt 0:01:08]} Bh5 {[%emt 0:00:41]} 59. Kc5 {[%emt 0:01:17]} Kxe5 {[%emt 0:02:14]} 60. Kxb5 {[%emt 0:00:12]} Kf4 {[%emt 0:09:48]} 61. Kc5 {[%emt 0:00:55]} e5 {[%emt 0:00:37]} 62. b5 {[%emt 0:00:17]} Be2 {[%emt 0:00:52]} 63. b6 {[%emt 0:00:28]} Bf3 {[%emt 0:00:29]} 64. a4 {[%emt 0:00:49]} Bb7 {[%emt 0:00:16]} 65. Kb5 {[%emt 0:00:32]} e4 {[%emt 0:00:23]} 66. a5 {[%emt 0:00:08]} e3 {[%emt 0:00:45]} 67. a6 {[%emt 0:00:08]} Bxa6+ {[%emt 0:00:19]} 68. Kxa6 {[%emt 0:00:05]} e2 {[%emt 0:00:03]} 69. b7 {[%emt 0:00:11]} e1=Q {[%emt 0:00:05]} 70. b8=Q+ {[%emt 0:00:05]} 1/2-1/2

[Event "FIDE WYCC Girls U14 2023"]
[Site "Montesilvano"]
[Date "2023.11.15"]
[Round "3.6"]
[White "Khulan, Bayarsaikhan"]
[Black "Goriachkina, Oksana"]
[Result "1-0"]
[ECO "A06"]
[WhiteElo "1615"]
[BlackElo "1915"]
[Annotator "NA"]
[PlyCount "81"]
[EventDate "2023.11.13"]
[EventType "swiss"]
[EventCountry "ITA"]
[SourceTitle "playchess.com"]
[Source "ChessBase"]
[SourceQuality "1"]
[TimeControl "40/5400+30:1800+30"]

1. Nf3 {[%emt 0:00:02]} d5 {[%emt 0:00:02]} 2. g3 {[%emt 0:00:05]} Bg4 {[%emt 0:03:49]} 3. Bg2 {[%emt 0:00:20]} c6 {[%emt 0:00:04]} 4. d4 {[%emt 0:00:58]} Nd7 {[%emt 0:01:00]} 5. Nbd2 {[%emt 0:02:36]} Ngf6 {[%emt 0:00:51]} 6. c4 {[%emt 0:02:55]} e6 {[%emt 0:00:51]} 7. O-O {[%emt 0:01:11]} Bd6 {[%emt 0:01:31]} 8. b3 {[%emt 0:01:44]} a5 {[%emt 0:09:30]} 9. a4 {[%emt 0:04:33]} O-O {[%emt 0:03:50]} 10. Bb2 {[%emt 0:01:24]} Qc7 {[%emt 0:00:17]} 11. Qc2 {[%emt 0:00:36]} Bf5 {[%emt 0:00:50]} 12. Qc1 {[%emt 0:00:43]} h6 {[%emt 0:01:47]} 13. Re1 {[%emt 0:01:18]} Ne4 {[%emt 0:05:50]} 14. Nxe4 {[%emt 0:06:24]} Bxe4 {[%emt 0:00:25]} 15. Nd2 {[%emt 0:00:06]} Bxg2 {[%emt 0:00:55]} 16. Kxg2 {[%emt 0:00:10]} f5 {[%emt 0:07:55]} 17. Nf3 {[%emt 0:03:54]} Rf6 {[%emt 0:02:48]} 18. Qe3 {[%emt 0:06:20]} g5 {[%emt 0:08:03]} 19. Qd3 {[%emt 0:06:25]} Raf8 {[%emt 0:02:12]} 20. Rf1 {[%emt 0:05:36]} Qb8 {[%emt 0:06:34]} 21. Bc3 {[%emt 0:03:26]} Qe8 {[%emt 0:12:45]} 22. e3 {[%emt 0:08:24]} Bc7 {[%emt 0:05:28]} 23. Qd2 {[%emt 0:06:24]} b6 {[%emt 0:06:03]} 24. Rac1 {[%emt 0:01:50]} Rg6 {[%emt 0:02:28]} 25. c5 {[%emt 0:04:01]} bxc5 {[%emt 0:07:45]} 26. Bxa5 {[%emt 0:00:31]} Bd6 {[%emt 0:00:34]} 27. Bc3 {[%emt 0:05:21]} g4 {[%emt 0:03:02]} 28. Nh4 {[%emt 0:01:49]} Rg5 {[%emt 0:00:01]} 29. Bb2 {[%emt 0:01:22]} cxd4 {[%emt 0:01:41]} 30. Rxc6 {[%emt 0:00:50]} dxe3 {[%emt 0:01:50]} 31. Qxe3 {[%emt 0:03:08]} Qe7 {[%emt 0:01:17]} 32. f4 {[%emt 0:02:09]} gxf3+ {[%emt 0:00:59]} 33. Nxf3 {[%emt 0:00:09]} f4 {[%emt 0:02:16]} 34. Qe2 {[%emt 0:08:42]} Rg6 {[%emt 0:01:26]} 35. Ne5 {[%emt 0:00:57]} Bxe5 {[%emt 0:00:30]} 36. Bxe5 {[%emt 0:00:08]} Nxe5 {[%emt 0:00:35]} 37. Qxe5 {[%emt 0:00:02]} Re8 {[%emt 0:00:43]} 38. Rxf4 {[%emt 0:01:08]} Qb7 {[%emt 0:00:31]} 39. Rc7 {[%emt 0:00:42]} Qxb3 {[%emt 0:00:29]} 40. Rff7 {[%emt 0:00:00]} Qa2+ {[%emt 0:00:00]} 41. Kh3 {[%emt 0:00:16]} 1-0